bitfinex-derivatives/quotes_BNBF0:USTF0_20250220
["timestamp","ask_amount","ask_price","bid_price","bid_amount"]
[1740070814960,3.07752659,647.74,647.14,1.14407288]
[1740070815165,3.07752659,647.73,647.14,1.14407288]
[1740070815366,3.07752659,647.72,647.14,1.14407288]
[1740070815564,3.07752659,647.71,647.14,1.14407288]
[1740070815767,3.07752659,647.7,647.14,1.14407288]
[1740070815968,3.07752659,647.69,647.14,1.14407288]
[1740070816166,3.07752659,647.68,647.14,1.14407288]
[1740070816362,3.07752659,647.67,647.14,1.14407288]
[1740070816566,2.23764105,647.77,647.1,1.14407288]
[1740070816767,2.23764105,647.68,647.1,1.14407288]
[1740070816967,3.07746586,647.67,647.1,1.14407288]
[1740070817270,2.23764105,647.68,647.1,1.14407288]
[1740070818273,2.472,647.78,647.1,1.14407288]
[1740070818470,3.07646819,647.77,647.1,1.14407288]
[1740070818671,3.07646819,647.76,647.1,1.14407288]
[1740070818874,3.07646819,647.75,647.1,1.14407288]
[1740070819065,2.23675132,647.77,647.1,1.14407288]
[1740070819272,3.07698832,647.76,647.1,1.14407288]
[1740070819571,2.23675132,647.77,647.0,1.14407288]
[1740070819767,3.07621822,647.76,647.0,1.14407288]
[1740070819968,2.23675132,647.77,647.0,1.14407288]
[1740070820469,3.07548052,647.76,647.0,1.14407288]
[1740070820670,2.472,647.78,647.0,1.14407288]
[1740070820870,3.07574716,647.77,647.0,1.14407288]
[1740070821170,2.472,647.78,647.0,1.14407288]
[1740070821965,2.472,647.78,646.69,1.14407288]
[1740070823371,3.07479309,647.77,646.69,1.14407288]
[1740070823572,2.472,647.78,646.69,1.14407288]
[1740070824472,1.558,647.77,646.69,1.14407288]
[1740070825071,1.558,647.77,646.64,1.14407288]
[1740070827174,1.558,647.77,646.65,0.30928632]
[1740070827674,1.558,647.77,646.66,1.14407288]
[1740070827870,1.558,647.77,646.67,0.30927675]
[1740070829577,1.558,647.77,647.06,1.14407288]
[1740070831481,1.558,647.77,647.18,1.14407288]
[1740070833182,1.558,647.77,647.25,1.14407288]
[1740070833684,2.472,647.78,647.25,1.14407288]
[1740070834984,2.472,647.78,647.12,1.14407288]
[1740070836280,3.218,647.87,647.12,1.14407288]
[1740070836782,3.218,647.87,646.67,0.30927675]
[1740070836783,3.218,647.87,646.91,1.14407288]
[1740070838783,3.218,647.87,646.95,1.14407288]
[1740070840784,1.797,647.87,646.95,1.14407288]
[1740070841081,1.797,647.87,646.9,1.14407288]
[1740070843290,1.797,647.87,646.92,1.14407288]
[1740070845091,1.797,647.87,646.96,1.14407288]
[1740070846290,3.06244478,647.86,646.96,1.14407288]
[1740070846485,3.06244478,647.85,646.96,1.14407288]
[1740070846694,3.06234257,647.84,646.96,1.14407288]
[1740070846890,3.06234257,647.83,646.96,1.14407288]
[1740070847092,2.22637439,647.84,646.96,1.14407288]
[1740070847387,3.06225919,647.83,646.96,1.14407288]
[1740070847592,2.22637439,647.84,646.96,1.14407288]
[1740070847792,3.06237911,647.83,646.96,1.14407288]
[1740070847992,2.22637439,647.84,646.89,1.14407288]
[1740070848189,3.06241541,647.83,646.89,1.14407288]
[1740070848393,2.22637439,647.83,646.89,1.14407288]
[1740070848593,3.06230588,647.82,646.89,1.14407288]
[1740070848789,3.06230588,647.81,646.89,1.14407288]
[1740070849094,3.06230588,647.8,646.89,1.14407288]
[1740070849296,2.22637439,647.83,646.89,1.14407288]
[1740070849493,3.06245917,647.82,646.87,1.14407288]
[1740070849690,3.06245917,647.81,646.87,1.14407288]
[1740070849894,3.06245917,647.8,646.87,1.14407288]
[1740070850190,2.22637439,647.82,646.87,1.14407288]
[1740070850394,3.06223539,647.81,646.87,1.14407288]
[1740070850590,3.06228389,647.8,646.87,1.14407288]
[1740070850792,2.22637439,647.82,646.87,1.14407288]
[1740070851096,3.06235284,647.81,646.87,1.14407288]
[1740070851295,2.22637439,647.82,646.87,1.14407288]
[1740070851491,3.06246893,647.81,646.87,1.14407288]
[1740070851687,3.06246893,647.8,646.87,1.14407288]
[1740070851893,3.205,647.87,646.87,1.14407288]
[1740070852088,3.06237814,647.86,646.87,1.14407288]
[1740070852289,3.06237814,647.85,646.87,1.14407288]
[1740070852495,5.28883032,647.84,647.19,1.14407288]
[1740070852696,3.06237814,647.83,647.19,1.14407288]
[1740070852892,3.06237814,647.82,647.19,1.14407288]
[1740070853093,3.06237814,647.81,647.19,1.14407288]
[1740070853288,2.22645218,647.84,647.19,1.14407288]
[1740070853289,3.06298977,647.8,647.19,1.14407288]
[1740070853490,2.22645218,647.84,647.19,1.14407288]
[1740070853692,3.06299651,647.83,647.19,1.14407288]
[1740070853889,3.06299651,647.82,647.19,1.14407288]
[1740070854094,3.06299651,647.81,647.19,1.14407288]
[1740070854292,2.22645218,647.82,647.19,1.14407288]
[1740070854491,3.06318148,647.81,647.19,1.14407288]
[1740070854697,2.22645218,647.82,647.19,1.14407288]
[1740070854893,3.06315515,647.81,647.2,1.14407288]
[1740070855196,3.06315515,647.8,647.2,1.14407288]
[1740070855395,3.06315515,647.79,647.2,1.14407288]
[1740070855596,3.06315515,647.78,647.2,1.14407288]
[1740070855802,3.06315515,647.77,647.2,1.14407288]
[1740070855990,2.22645218,647.77,647.2,1.14407288]
[1740070857596,2.22645218,647.77,647.14,1.14407288]
[1740070857797,3.205,647.87,647.14,1.14407288]
[1740070857993,3.06405849,647.86,647.14,1.14407288]
[1740070858201,3.06405849,647.85,647.14,1.14407288]
[1740070858399,3.205,647.87,647.14,1.14407288]
[1740070858400,3.06405849,647.84,647.14,1.14407288]
[1740070858599,3.06405849,647.83,647.14,1.14407288]
[1740070858898,3.06405849,647.82,647.14,1.14407288]
[1740070859093,3.06405849,647.81,647.14,1.14407288]
[1740070859294,3.06405849,647.8,647.14,1.14407288]
[1740070859799,3.205,647.87,647.14,1.14407288]
[1740070860500,5.29065113,647.86,647.14,1.14407288]
[1740070860698,3.06326694,647.85,647.14,1.14407288]
[1740070860901,3.06326694,647.84,646.69,1.14407288]
[1740070861098,2.22738419,647.86,646.69,1.14407288]
[1740070861099,3.06326694,647.83,646.69,1.14407288]
[1740070861299,3.06326694,647.82,646.69,1.14407288]
[1740070861496,3.06326694,647.81,646.69,1.14407288]
[1740070861701,3.06326694,647.8,646.69,1.14407288]
[1740070861902,3.06326694,647.79,646.69,1.14407288]
[1740070862101,1.584,647.8,646.69,1.14407288]
[1740070862301,2.22738419,647.78,646.69,1.14407288]
[1740070863004,2.22738419,647.78,646.54,1.61100545]
[1740070863804,1.584,647.8,646.54,1.61100545]
[1740070865404,1.804,647.79,646.57,1.14407288]
[1740070866208,3.06807054,647.78,646.57,1.14407288]
[1740070866508,3.06807054,647.77,646.57,1.14407288]
[1740070866707,3.06844526,647.76,646.57,1.14407288]
[1740070866903,1.804,647.79,646.57,1.14407288]
[1740070867107,3.06848691,647.78,646.57,1.14407288]
[1740070867304,3.06848691,647.77,646.57,1.14407288]
[1740070867505,3.06933045,647.76,646.57,1.14407288]
[1740070867707,1.804,647.79,646.57,1.14407288]
[1740070869210,1.804,647.79,646.59,1.61104274]
[1740070870514,1.804,647.79,646.62,1.14407288]
[1740070872613,1.804,647.79,647.03,1.14407288]
[1740070874717,1.804,647.79,647.29,1.14407288]
[1740070875016,1.584,647.8,647.29,1.14407288]
[1740070876513,1.584,647.8,646.6,2.33581547]
[1740070876514,1.584,647.8,647.3,1.14407288]
[1740070878520,1.584,647.8,647.37,1.14407288]
[1740070878912,2.665,647.87,647.37,1.14407288]
[1740070881023,2.665,647.87,646.76,1.6103221]
[1740070881219,2.665,647.87,646.77,0.30922893]
[1740070887727,0.634,647.87,646.77,0.30922893]
[1740070889131,0.634,647.87,646.99,1.37288746]
[1740070889321,0.634,647.87,647.18,1.14407288]
[1740070891524,0.634,647.87,647.15,1.14407288]
[1740070892628,3.06970252,647.86,647.15,1.14407288]
[1740070892833,3.06970252,647.85,647.15,1.14407288]
[1740070893130,3.06970252,647.84,647.15,1.14407288]
[1740070893331,3.06970252,647.83,647.15,1.14407288]
[1740070893529,3.06970252,647.82,647.15,1.14407288]
[1740070893732,3.06970252,647.81,647.15,1.14407288]
[1740070893932,3.06970252,647.8,647.15,1.14407288]
[1740070894228,3.06970252,647.79,647.09,1.14407288]
[1740070894435,5.30124106,647.78,647.09,1.14407288]
[1740070894630,3.06970252,647.77,647.09,1.14407288]
[1740070894830,3.06970252,647.76,647.09,1.14407288]
[1740070895033,3.06970252,647.75,647.09,1.14407288]
[1740070895334,3.06970252,647.74,647.09,1.14407288]
[1740070895534,3.06970252,647.73,647.09,1.14407288]
[1740070895738,3.06970252,647.72,647.09,1.14407288]
[1740070895932,3.06970252,647.71,647.09,1.14407288]
[1740070896135,5.30124106,647.7,647.09,1.14407288]
[1740070896439,3.06970252,647.69,647.09,1.14407288]
[1740070896733,2.23153854,647.7,646.33,1.14407288]
[1740070897138,3.06660065,647.69,646.33,1.14407288]
[1740070897330,3.06660065,647.68,646.33,1.14407288]
[1740070897535,3.06660065,647.67,646.33,1.14407288]
[1740070897735,2.23153854,647.67,646.33,1.14407288]
[1740070898539,2.23153854,647.67,646.36,1.14407288]
[1740070899043,2.768,647.97,646.36,1.14407288]
[1740070899244,3.0659689,647.96,646.36,1.14407288]
[1740070899440,3.0659689,647.95,646.36,1.14407288]
[1740070899639,3.0659689,647.94,646.36,1.14407288]
[1740070899840,3.0659689,647.93,646.36,1.14407288]
[1740070900039,3.0659689,647.92,646.36,1.14407288]
[1740070900338,4.9419689,647.91,646.36,1.14407288]
[1740070900537,3.0659689,647.9,646.36,1.14407288]
[1740070900843,3.0659689,647.89,646.36,1.14407288]
[1740070901145,3.0659689,647.88,646.37,1.14407288]
[1740070901342,3.0659689,647.87,646.37,1.14407288]
[1740070901542,3.0659689,647.86,646.37,1.14407288]
[1740070901743,3.0659689,647.85,646.37,1.14407288]
[1740070902043,3.0659689,647.84,646.37,1.14407288]
[1740070902242,3.0659689,647.83,646.37,1.14407288]
[1740070902438,3.0659689,647.82,646.37,1.14407288]
[1740070902638,3.0659689,647.81,646.37,1.14407288]
[1740070902840,2.22913137,647.83,646.37,1.14407288]
[1740070903041,1.358,647.8,646.37,1.14407288]
[1740070903437,1.358,647.8,646.38,1.14407288]
[1740070904740,3.06532277,647.79,646.38,1.14407288]
[1740070904941,3.06532277,647.78,646.38,1.14407288]
[1740070905137,3.06532277,647.77,646.38,1.14407288]
[1740070905342,3.06532277,647.76,646.38,1.14407288]
[1740070905539,3.06532277,647.75,646.91,1.14407288]
[1740070905744,3.06532277,647.74,646.91,1.14407288]
[1740070906046,3.06532277,647.73,646.91,1.14407288]
[1740070906240,3.06532277,647.72,646.91,1.14407288]
[1740070906447,3.06506568,647.71,646.91,1.14407288]
[1740070906646,1.358,647.8,646.91,1.14407288]
[1740070906847,3.06510869,647.79,646.91,1.14407288]
[1740070907146,3.06510869,647.78,646.91,1.14407288]
[1740070907443,3.06510869,647.77,646.91,1.14407288]
[1740070907647,3.06510869,647.76,646.93,1.14407288]
[1740070907848,3.06510869,647.75,646.93,1.14407288]
[1740070908044,3.06510869,647.74,646.93,1.14407288]
[1740070908249,2.22832981,647.78,646.93,1.14407288]
[1740070908250,3.06510869,647.73,646.93,1.14407288]
[1740070908449,5.2934385,647.72,646.93,1.14407288]
[1740070908650,3.06510869,647.71,646.93,1.14407288]
[1740070908949,3.06510869,647.7,646.93,1.14407288]
[1740070909147,3.06510869,647.69,646.93,1.14407288]
[1740070909346,3.06510869,647.68,646.93,1.14407288]
[1740070909546,2.22832981,647.72,646.93,1.14407288]
[1740070909747,3.06560392,647.71,646.93,1.14407288]
[1740070909950,3.06560392,647.7,646.86,1.14407288]
[1740070910146,3.06560392,647.69,646.86,1.14407288]
[1740070910350,5.29393373,647.68,646.86,1.14407288]
[1740070910552,2.22832981,647.68,646.86,1.14407288]
[1740070912347,3.06531854,647.67,646.67,1.61104896]
[1740070912651,1.358,647.8,646.67,1.61104896]
[1740070912853,3.06518869,647.79,646.67,1.61104896]
[1740070913153,3.06518869,647.78,646.67,1.61104896]
[1740070913351,3.06518869,647.77,646.67,1.61104896]
[1740070913553,3.06518869,647.76,646.67,1.61104896]
[1740070913852,3.06518869,647.75,646.67,1.61104896]
[1740070914151,3.06518869,647.74,646.67,1.61104896]
[1740070914351,3.06518869,647.73,646.67,1.61104896]
[1740070914651,3.06518869,647.72,646.67,1.61104896]
[1740070914848,3.06518869,647.71,646.67,1.61104896]
[1740070915052,3.06518869,647.7,646.67,1.61104896]
[1740070915246,2.22743875,647.74,646.67,1.61104896]
[1740070915446,3.06501371,647.73,646.67,1.61104896]
[1740070915651,2.22743875,647.74,646.67,1.61104896]
[1740070915652,3.06501371,647.72,646.67,1.61104896]
[1740070915851,2.22743875,647.74,646.67,1.61104896]
[1740070916156,3.06504185,647.73,646.67,1.61104896]
[1740070916350,3.06504185,647.72,646.46,1.14407288]
[1740070916564,3.06504185,647.71,646.53,1.61142196]
[1740070916749,3.06504185,647.7,646.46,1.14407288]
[1740070916949,3.06504185,647.69,646.46,1.14407288]
[1740070917150,3.06504185,647.68,646.48,1.6116023]
[1740070917452,3.06504185,647.67,646.48,1.6116023]
[1740070917652,3.06504185,647.66,646.48,1.6116023]
[1740070917853,3.06504185,647.65,646.48,1.6116023]
[1740070918049,3.06504185,647.64,646.48,1.6116023]
[1740070918249,3.06504185,647.63,646.6,1.14407288]
[1740070918453,3.06504185,647.62,646.6,1.14407288]
[1740070918649,3.06504185,647.61,646.6,1.14407288]
[1740070918850,3.06504185,647.6,646.6,1.14407288]
[1740070919052,2.22726289,647.64,646.6,1.14407288]
[1740070919053,3.06504185,647.59,646.6,1.14407288]
[1740070919252,3.06504185,647.58,646.6,1.14407288]
[1740070919454,3.06504185,647.57,646.6,1.14407288]
[1740070919654,2.22726289,647.57,646.6,1.14407288]
[1740070920053,1.358,647.8,646.6,1.14407288]
[1740070920756,1.66673726,647.8,646.6,1.14407288]
[1740070921055,1.66673726,647.8,646.58,1.14407288]
[1740070923849,1.66673726,647.8,646.49,1.14407288]
[1740070924254,3.06038994,647.79,646.49,1.14407288]
[1740070924452,3.06038994,647.78,646.49,1.14407288]
[1740070924656,3.06038994,647.77,646.49,1.45343574]
[1740070924853,3.06038994,647.76,646.5,0.30935808]
[1740070925054,3.06038994,647.75,646.5,0.30935808]
[1740070925350,3.06038994,647.74,646.5,0.30935808]
[1740070925555,3.06038994,647.73,646.5,0.30935808]
[1740070925756,5.28528749,647.72,646.75,1.14407288]
[1740070925951,2.22489755,647.72,646.75,1.14407288]
[1740070926150,0.649,647.77,646.75,1.14407288]
[1740070927752,3.06096681,647.76,646.75,1.14407288]
[1740070927951,0.649,647.77,646.75,1.14407288]
[1740070928355,3.06118337,647.76,646.89,1.14407288]
[1740070928553,0.649,647.77,646.89,1.14407288]
[1740070928760,5.28599991,647.76,646.89,1.14407288]
[1740070928959,2.22505604,647.76,646.89,1.14407288]
[1740070930060,0.649,647.77,646.81,1.14407288]
[1740070933661,0.649,647.77,646.88,1.14407288]
[1740070935263,0.649,647.77,646.87,1.14407288]
[1740070937464,0.649,647.77,646.87,1.45325401]
[1740070937664,0.649,647.77,646.58,2.33581547]
[1740070937665,0.649,647.77,646.88,1.45324923]
[1740070940468,0.649,647.77,646.89,0.30917157]
[1740070942669,1.917,647.97,646.89,0.30917157]
[1740070943365,1.917,647.97,647.24,1.14407288]
[1740070945671,1.917,647.97,647.35,1.14407288]
[1740070948973,1.917,647.97,647.1,2.33581547]
[1740070948974,1.917,647.97,647.0,1.14407288]
[1740070949174,1.917,647.97,647.01,0.30911423]
[1740070955277,2.192,648.02,647.01,0.30911423]
[1740070959681,3.04967255,648.01,647.01,0.30911423]
[1740070959883,2.192,648.02,647.01,0.30911423]
[1740070960083,3.04956211,648.01,647.01,0.30911423]
[1740070960285,2.21690345,648.01,647.01,0.30911423]
[1740070960583,3.04942382,648.0,647.01,0.30911423]
[1740070960783,3.04942382,647.99,647.01,0.30911423]
[1740070961078,3.04942382,647.98,647.01,0.30911423]
[1740070961284,3.04942382,647.97,647.01,0.30911423]
[1740070961484,2.21690345,648.01,647.01,0.30911423]
[1740070961682,2.21690345,647.96,647.01,0.30911423]
[1740070963078,1.979,648.04,647.13,1.14407288]
[1740070963282,3.04904347,648.03,647.13,1.14407288]
[1740070963484,3.04919003,648.02,647.13,1.14407288]
[1740070963682,2.21659349,648.03,647.13,1.14407288]
[1740070964784,1.979,648.04,647.13,1.14407288]
[1740070965285,1.979,648.04,647.04,1.14407288]
[1740070967182,1.979,648.04,647.17,1.14407288]
[1740070967385,2.197,648.07,647.17,1.14407288]
[1740070968785,1.335,648.12,647.17,1.14407288]
[1740070969389,1.335,648.12,647.04,1.61008617]
[1740070969390,1.335,648.12,647.34,1.14407288]
[1740070971493,1.335,648.12,647.65,1.14407288]
[1740070971992,0.648,648.17,647.65,1.14407288]
[1740070973987,0.648,648.17,647.68,1.14407288]
[1740070977196,0.648,648.17,647.69,1.14407288]
[1740070979300,0.648,648.17,647.38,1.14407288]
[1740070981796,0.648,648.17,647.42,1.14407288]
[1740070984102,1.699,648.37,647.42,1.14407288]
[1740070984403,1.699,648.37,647.4,1.14407288]
[1740070987197,1.699,648.37,647.41,0.30892324]
[1740070991202,1.442,648.57,647.41,0.30892324]
[1740070998211,1.442,648.57,647.44,1.14407288]
[1740070998411,1.442,648.57,647.45,0.30890416]
[1740071001312,1.442,648.57,647.89,1.14407288]
[1740071003611,1.725,648.63,647.89,1.14407288]
[1740071004214,1.343,648.64,647.89,1.14407288]
[1740071004413,1.343,648.64,647.76,1.14407288]
[1740071004811,3.176,648.67,647.77,0.30875156]
[1740071005514,1.857,648.77,647.77,0.30875156]
[1740071007020,1.857,648.77,647.84,1.14407288]
[1740071007221,1.857,648.77,647.85,0.30871343]
[1740071018621,1.949,649.09,647.85,0.30871343]
[1740071021330,1.949,649.09,647.95,1.14407288]
[1740071022129,3.547,649.12,647.95,1.14407288]
[1740071022727,5.393,649.12,647.95,1.14407288]
[1740071024532,5.393,649.12,647.85,0.30871343]
[1740071034742,1.907,649.11,647.85,0.30871343]
[1740071036738,1.787,649.1,647.85,0.30871343]
[1740071040649,3.05472816,649.09,647.85,0.30871343]
[1740071040844,3.05472816,649.08,647.85,0.30871343]
[1740071041044,5.27435027,649.07,647.85,0.30871343]
[1740071041250,2.21962211,649.07,647.85,0.30871343]
[1740071041851,1.787,649.1,647.95,1.14407288]
[1740071042151,1.787,649.1,647.96,0.30866102]
[1740071043646,3.05785457,649.09,647.96,0.30866102]
[1740071043849,3.05785457,649.08,647.96,0.30866102]
[1740071044049,3.05785457,649.07,647.96,0.30866102]
[1740071044244,3.05785457,649.06,648.12,1.14407288]
[1740071044452,3.05785457,649.05,648.12,1.14407288]
[1740071044649,3.05785457,649.04,648.12,1.14407288]
[1740071044849,3.05861085,649.03,648.12,1.14407288]
[1740071045049,3.05861085,649.02,648.12,1.14407288]
[1740071045351,3.0596126,649.01,648.12,1.14407288]
[1740071045552,3.0596126,649.0,648.12,1.14407288]
[1740071045752,2.22157109,649.07,648.12,1.14407288]
[1740071045753,3.0596126,648.99,648.12,1.14407288]
[1740071045952,3.05947114,648.98,648.54,1.14407288]
[1740071046156,3.05947114,648.97,648.54,1.14407288]
[1740071046351,2.22157109,648.98,648.54,1.14407288]
[1740071047654,1.787,649.1,648.54,1.14407288]
[1740071047848,3.0597056,649.09,648.54,1.14407288]
[1740071048047,5.28315507,649.08,648.54,1.14407288]
[1740071048252,2.22344947,649.08,648.54,1.14407288]
[1740071048654,2.22344947,649.08,648.15,2.33581547]
[1740071048851,2.22344947,649.08,648.14,1.14407288]
[1740071049753,2.22344947,649.07,648.14,1.14407288]
[1740071051151,2.09511893,649.1,648.14,1.14407288]
[1740071051755,2.09511893,649.1,647.88,1.14407288]
[1740071052660,0.30812368,649.09,647.88,1.14407288]
[1740071052959,3.06116115,649.08,647.88,1.14407288]
[1740071053159,1.787,649.1,647.88,1.14407288]
[1740071053160,3.36929432,649.07,647.88,1.14407288]
[1740071053461,5.59427008,649.06,647.88,1.14407288]
[1740071053659,3.36930382,649.05,647.88,1.14407288]
[1740071053861,3.06116115,649.04,647.62,1.60846756]
[1740071054159,3.06116115,649.03,647.62,1.60846756]
[1740071054362,3.06116115,649.02,647.62,1.60846756]
[1740071054555,3.06116115,649.01,647.62,1.60846756]
[1740071054757,3.06116115,649.0,647.62,1.60846756]
[1740071054955,3.06116115,648.99,647.62,1.60846756]
[1740071055157,3.06116115,648.98,647.62,1.60846756]
[1740071055460,3.06116115,648.97,647.62,1.60846756]
[1740071055661,3.06116115,648.96,647.62,1.60846756]
[1740071055963,3.06116115,648.95,647.62,1.60846756]
[1740071056259,3.06116115,648.94,647.62,1.60846756]
[1740071056459,3.06116115,648.93,647.62,1.60846756]
[1740071056660,3.06116115,648.92,647.62,1.60846756]
[1740071056856,3.06116115,648.91,647.62,1.60846756]
[1740071057061,3.06116115,648.9,647.62,1.60846756]
[1740071057362,3.06116115,648.89,647.62,1.60846756]
[1740071057560,3.06116115,648.88,647.62,1.60846756]
[1740071057758,3.06116115,648.87,647.62,1.60846756]
[1740071057962,3.06116115,648.86,647.62,1.60846756]
[1740071058261,3.06116115,648.85,647.62,1.60846756]
[1740071058465,3.06116115,648.84,647.62,1.60846756]
[1740071058762,3.06116115,648.83,647.62,1.60846756]
[1740071058958,3.06116115,648.82,647.62,1.60846756]
[1740071059163,3.06116115,648.81,647.62,1.60846756]
[1740071059363,3.06116115,648.8,647.62,1.60846756]
[1740071059564,3.06116115,648.79,647.62,1.60846756]
[1740071059863,3.06116115,648.78,647.62,1.60846756]
[1740071060162,3.06116115,648.77,647.62,1.60846756]
[1740071060362,3.06116115,648.76,647.62,1.60846756]
[1740071060562,3.06116115,648.75,647.62,1.60846756]
[1740071060763,2.22497101,648.79,647.62,1.60846756]
[1740071060965,3.06480434,648.78,647.62,1.60846756]
[1740071061165,3.06480434,648.77,647.62,1.60846756]
[1740071061368,3.06480434,648.76,648.0,1.14407288]
[1740071061569,3.06480434,648.75,648.0,1.14407288]
[1740071061770,3.06480434,648.74,648.0,1.14407288]
[1740071061970,3.06480434,648.73,648.0,1.14407288]
[1740071062172,3.06480434,648.72,648.0,1.14407288]
[1740071062369,2.22497101,648.74,648.0,1.14407288]
[1740071062570,3.06404613,648.73,648.0,1.14407288]
[1740071062870,3.06404613,648.72,648.0,1.14407288]
[1740071063070,2.22497101,648.74,648.0,1.14407288]
[1740071063267,3.06383031,648.73,648.04,1.14407288]
[1740071063571,3.06383031,648.72,648.04,1.14407288]
[1740071063772,2.22497101,648.73,648.04,1.14407288]
[1740071063972,3.0635142,648.72,648.04,1.14407288]
[1740071064271,2.22497101,648.73,648.04,1.14407288]
[1740071065068,3.06289046,648.72,648.04,1.14407288]
[1740071065270,1.624,648.92,648.04,1.14407288]
[1740071065473,3.06257035,648.91,647.99,1.14407288]
[1740071065667,3.06257035,648.9,647.99,1.14407288]
[1740071065973,3.06257035,648.89,647.99,1.14407288]
[1740071066175,3.06257035,648.88,647.99,1.14407288]
[1740071066474,3.06257035,648.87,647.99,1.14407288]
[1740071066674,3.06257035,648.86,647.99,1.14407288]
[1740071066874,3.06257035,648.85,647.99,1.14407288]
[1740071067068,3.06257035,648.84,647.99,1.14407288]
[1740071067274,3.06257035,648.83,647.99,1.14407288]
[1740071067573,5.28816877,648.82,647.99,1.14407288]
[1740071067776,3.06257035,648.81,647.99,1.14407288]
[1740071067973,3.06257035,648.8,647.99,1.14407288]
[1740071068169,3.06257035,648.79,647.96,1.14407288]
[1740071068373,3.06257035,648.78,647.96,1.14407288]
[1740071068575,3.06257035,648.77,647.96,1.14407288]
[1740071068874,3.06257035,648.76,647.96,1.14407288]
[1740071069071,2.22559842,648.82,647.96,1.14407288]
[1740071069276,3.06205923,648.81,647.96,1.14407288]
[1740071069476,3.06205923,648.8,647.96,1.14407288]
[1740071069677,3.06205923,648.79,647.96,1.14407288]
[1740071069875,3.06205923,648.78,647.96,1.14407288]
[1740071070074,3.06205923,648.77,647.96,1.14407288]
[1740071070275,3.06251306,648.76,647.96,1.14407288]
[1740071070577,2.22559842,648.8,647.96,1.14407288]
[1740071070780,3.06245671,648.79,647.96,1.14407288]
[1740071070978,3.06245671,648.78,647.96,1.14407288]
[1740071071179,3.06245671,648.77,647.65,1.60852952]
[1740071071380,3.06245671,648.76,647.65,1.60852952]
[1740071071679,2.22559842,648.78,647.65,1.60852952]
[1740071071882,3.06273539,648.77,647.65,1.60852952]
[1740071072081,3.06273539,648.76,647.65,1.60852952]
[1740071072281,3.06273539,648.75,647.65,1.60852952]
[1740071072583,3.06273539,648.74,647.65,1.60852952]
[1740071072782,2.22559842,648.74,647.65,1.60852952]
[1740071073180,3.06287019,648.73,647.65,1.60852952]
[1740071073382,3.06287019,648.72,647.65,1.60852952]
[1740071073577,2.22559842,648.74,647.68,1.14407288]
[1740071074179,1.962,648.94,647.68,1.14407288]
[1740071074379,3.06293106,648.93,647.68,1.14407288]
[1740071074582,3.06293106,648.92,647.68,1.14407288]
[1740071074782,3.06293106,648.91,647.68,1.14407288]
[1740071074983,3.06293106,648.9,647.68,1.14407288]
[1740071075183,3.06293106,648.89,647.68,1.14407288]
[1740071075383,3.06293106,648.88,647.68,1.14407288]
[1740071075580,3.06293106,648.87,647.68,1.14407288]
[1740071075786,3.06293106,648.86,647.68,1.14407288]
[1740071075987,3.06293106,648.85,647.67,1.14407288]
[1740071076184,3.06293106,648.84,647.67,1.14407288]
[1740071076383,3.06293106,648.83,647.67,1.14407288]
[1740071076583,3.06293106,648.82,647.67,1.14407288]
[1740071076887,3.06293106,648.81,647.67,1.14407288]
[1740071077080,3.06293106,648.8,647.67,1.14407288]
[1740071077285,3.06293106,648.79,647.67,1.14407288]
[1740071077481,3.06293106,648.78,647.67,1.14407288]
[1740071077787,3.06293106,648.77,647.67,1.14407288]
[1740071077982,3.06293106,648.76,647.67,1.14407288]
[1740071078184,3.06293106,648.75,647.67,1.14407288]
[1740071078381,3.06293106,648.74,647.78,1.14407288]
[1740071078584,3.06293106,648.73,647.78,1.14407288]
[1740071078785,3.06293106,648.72,647.78,1.14407288]
[1740071078989,3.06293106,648.71,647.78,1.14407288]
[1740071079182,2.22583106,648.75,647.78,1.14407288]
[1740071079383,3.06172594,648.74,647.78,1.14407288]
[1740071079587,3.06172594,648.73,647.78,1.14407288]
[1740071079787,2.22583106,648.75,647.78,1.14407288]
[1740071080088,3.06159169,648.74,647.78,1.14407288]
[1740071080283,3.06159169,648.73,647.78,1.14407288]
[1740071080488,2.22583106,648.75,647.95,1.14407288]
[1740071080687,3.06142733,648.74,647.95,1.14407288]
[1740071080890,0.648,648.82,647.95,1.14407288]
[1740071081190,2.224773,648.74,647.95,1.14407288]
[1740071081383,3.06142721,648.73,647.95,1.14407288]
[1740071081583,3.06142721,648.72,647.95,1.14407288]
[1740071081785,2.224773,648.74,647.95,1.14407288]
[1740071082388,0.648,648.82,648.01,1.14407288]
[1740071082583,3.06146325,648.81,648.01,1.14407288]
[1740071082785,3.06146325,648.8,648.01,1.14407288]
[1740071082985,3.06146325,648.79,648.01,1.14407288]
[1740071083185,3.06146325,648.78,648.01,1.14407288]
[1740071083385,3.06146325,648.77,648.01,1.14407288]
[1740071083584,3.06146325,648.76,648.01,1.14407288]
[1740071083890,2.22484753,648.8,648.01,1.14407288]